bitfinex/quotes_BTCUSD_20240703
["timestamp","ask_amount","ask_price","bid_price","bid_amount"]
[1719973539006,0.12991,61581.0,61574.0,0.129924]
[1719973539211,0.26975488,61583.0,61575.0,0.2902208]
[1719973539212,0.00994288,61580.0,61575.0,0.2902208]
[1719973539417,0.00994288,61579.0,61575.0,0.2902208]
[1719973539614,0.129908,61582.0,61575.0,0.2902208]
[1719973539902,0.00994296,61581.0,61575.0,0.2902208]
[1719973540670,0.10994296,61581.0,61576.0,0.08015582]
[1719973540874,0.00994296,61580.0,61577.0,0.1602988]
[1719973541921,0.00994296,61580.0,61577.0,0.1415928]
[1719973542342,0.00994296,61580.0,61577.0,0.1435928]
[1719973542570,0.0099432,61579.0,61577.0,0.1435928]
[1719973542721,0.0099432,61580.0,61577.0,0.1455928]
[1719973542923,0.0099432,61579.0,61577.0,0.1455928]
[1719973543129,0.0099432,61578.0,61577.0,0.1455928]
[1719973543506,0.0099432,61580.0,61577.0,0.1435928]
[1719973543730,0.0099432,61579.0,61577.0,0.1435928]
[1719973543983,0.0099432,61578.0,61577.0,0.1465928]
[1719973544210,0.0099432,61578.0,61577.0,0.4933098]
[1719973544566,0.0099432,61583.0,61577.0,0.4963098]
[1719973544893,0.00981786,61583.0,61577.0,0.4933098]
[1719973545097,0.1,61584.0,61577.0,0.4903098]
[1719973545259,0.1,61584.0,61577.0,0.4943098]
[1719973545451,0.1,61584.0,61577.0,0.4923098]
[1719973546129,0.001,61583.0,61577.0,0.4903098]
[1719973547270,0.1,61584.0,61577.0,0.4903098]
[1719973547670,0.101,61584.0,61577.0,0.4903098]
[1719973548341,0.002,61583.0,61577.0,0.4903098]
[1719973548784,0.229904,61584.0,61577.0,0.4933098]
[1719973549174,0.229904,61584.0,61577.0,0.4923098]
[1719973550216,0.129904,61584.0,61577.0,0.4923098]
[1719973550550,0.129904,61584.0,61577.0,0.4943098]
[1719973552030,0.129906,61583.0,61577.0,0.3643928]
[1719973552831,0.129906,61583.0,61577.0,0.3623928]
[1719973553193,0.129906,61583.0,61577.0,0.3653928]
[1719973553397,0.129906,61583.0,61577.0,0.3633928]
[1719973553793,0.129903,61585.0,61578.0,0.3264]
[1719973554041,0.129903,61585.0,61579.0,0.1602988]
[1719973554469,0.259791,61588.0,61579.0,0.2902118]
[1719973554867,0.1299,61586.0,61579.0,0.2902118]
[1719973556059,0.1309,61586.0,61579.0,0.2902118]
[1719973557508,0.1,61585.0,61579.0,0.2902118]
[1719973558046,0.1,61585.0,61579.0,0.2922118]
[1719973558383,0.1,61585.0,61579.0,0.2902118]
[1719973558786,0.1,61585.0,61579.0,0.2932118]
[1719973559929,0.1,61585.0,61579.0,0.2952118]
[1719973560148,0.1,61585.0,61579.0,0.2932118]
[1719973560352,0.1,61586.0,61580.0,0.129912]
[1719973560794,0.1,61586.0,61583.0,0.08015582]
[1719973560975,0.00084,61589.0,61587.0,0.129896]
[1719973561188,0.01096193,61588.0,61587.0,0.129896]
[1719973561394,0.01096193,61588.0,61587.0,0.2901948]
[1719973562032,0.01095903,61588.0,61587.0,0.2901948]
[1719973562455,0.001,61588.0,61587.0,0.2901948]
[1719973562667,0.01250175,61588.0,61587.0,0.2901948]
[1719973564442,0.01150175,61588.0,61587.0,0.2901948]
[1719973564643,0.01150175,61588.0,61587.0,0.1672988]
[1719973564843,0.01150175,61588.0,61587.0,0.1752988]
[1719973565050,0.01142449,61588.0,61587.0,0.1602988]
[1719973565472,0.01142449,61588.0,61587.0,0.1712988]
[1719973566105,0.01142449,61588.0,61587.0,0.5240958]
[1719973566280,0.01142449,61588.0,61587.0,0.7921958]
[1719973566482,0.00084,61589.0,61588.0,0.129895]
[1719973566704,0.00084,61589.0,61588.0,0.5499838]
[1719973567362,0.00084,61589.0,61588.0,0.2901938]
[1719973567764,0.01186299,61589.0,61588.0,0.3001938]
[1719973568195,0.00084,61589.0,61588.0,0.3001938]
[1719973568401,0.01194624,61589.0,61588.0,0.01]
[1719973568589,0.07804624,61589.0,61588.0,0.01]
[1719973568830,0.07804624,61589.0,61588.0,0.019]
[1719973569372,0.01194624,61589.0,61588.0,0.019]
[1719973569569,0.01194624,61589.0,61588.0,0.5252]
[1719973571333,0.00084,61589.0,61588.0,0.5252]
[1719973571537,0.01213433,61589.0,61588.0,0.5252]
[1719973574003,0.01213433,61589.0,61588.0,0.8153938]
[1719973574437,0.00084,61589.0,61588.0,0.8153938]
[1719973576159,0.01221377,61589.0,61588.0,0.8153938]
[1719973577394,0.01186166,61589.0,61588.0,0.8153938]
[1719973578655,0.01186166,61589.0,61588.0,1.3948738]
[1719973578858,0.00084,61589.0,61588.0,1.4609738]
[1719973579464,0.00084,61589.0,61588.0,1.1412838]
[1719973579662,0.00084,61589.0,61588.0,1.0751838]
[1719973582446,0.01176186,61589.0,61588.0,1.0751838]
[1719973582839,0.01176186,61589.0,61588.0,1.06448327]
[1719973583427,0.00084,61589.0,61588.0,1.06448327]
[1719973583639,0.01180185,61589.0,61588.0,1.06448327]
[1719973584631,0.00084,61589.0,61588.0,0.80469327]
[1719973584869,0.01179804,61589.0,61588.0,0.80469327]
[1719973586134,0.01179804,61589.0,61588.0,0.67479827]
[1719973586331,0.01341398,61589.0,61588.0,0.67479827]
[1719973586912,0.00245594,61589.0,61588.0,0.67479827]
[1719973587115,0.01324223,61589.0,61588.0,0.67479827]
[1719973587527,0.01324434,61589.0,61588.0,0.67479827]
[1719973589014,0.01324434,61589.0,61588.0,0.16859827]
[1719973589640,0.01336198,61589.0,61588.0,0.16859827]
[1719973590044,0.01336272,61589.0,61588.0,0.16859827]
[1719973590601,0.01365806,61589.0,61588.0,0.16859827]
[1719973592561,0.01365806,61589.0,61588.0,0.31709827]
[1719973596457,0.01355994,61589.0,61588.0,0.31709827]
[1719973596631,0.01355994,61589.0,61588.0,0.31802227]
[1719973597802,0.01355994,61589.0,61588.0,0.33538601]
[1719973599486,0.00245594,61589.0,61588.0,0.52168601]
[1719973599688,0.0135753,61589.0,61588.0,0.52168601]
[1719973601968,0.0135753,61589.0,61588.0,0.58158601]
[1719973602224,0.0135753,61589.0,61588.0,0.52168601]
[1719973602594,0.00245594,61589.0,61588.0,0.52168601]
[1719973602809,0.01372629,61589.0,61588.0,0.52168601]
[1719973602983,0.01372627,61589.0,61588.0,0.52168601]
[1719973603706,0.14361927,61589.0,61588.0,0.02658721]
[1719973604011,0.14361927,61589.0,61588.0,0.00922347]
[1719973604012,1.87577794,61589.0,61588.0,0.00922347]
[1719973604134,1.76367315,61589.0,61588.0,0.00922347]
[1719973604338,2.15599684,61589.0,61588.0,0.00922347]
[1719973604512,0.969415,61578.0,61571.0,0.000924]
[1719973604714,1.8111216,61578.0,61571.0,0.000924]
[1719973604916,2.07148466,61578.0,61571.0,0.000924]
[1719973605138,1.92789127,61578.0,61571.0,0.000924]
[1719973605921,1.94089127,61578.0,61577.0,0.002924]
[1719973608675,1.8809418,61578.0,61577.0,0.002924]
[1719973608885,1.95949988,61578.0,61577.0,0.002924]
[1719973610581,2.25949988,61578.0,61577.0,0.002924]
[1719973610781,2.3787663,61578.0,61577.0,0.002924]
[1719973610981,2.1809418,61578.0,61577.0,0.002924]
[1719973611191,2.37847344,61578.0,61577.0,0.002924]
[1719973611397,2.25921672,61578.0,61577.0,0.002924]
[1719973611999,2.1809418,61578.0,61577.0,0.002924]
[1719973612203,2.25928657,61578.0,61577.0,0.002924]
[1719973612400,2.29702287,61578.0,61577.0,0.002924]
[1719973612672,2.29703527,61578.0,61577.0,0.002924]
[1719973613497,1.83558769,61578.0,61577.0,0.002924]
[1719973613705,1.90168769,61578.0,61577.0,0.002924]
[1719973614118,1.83558769,61578.0,61577.0,0.002924]
[1719973614308,1.67522463,61578.0,61577.0,0.002924]
[1719973614515,1.81280579,61578.0,61577.0,0.002924]
[1719973615238,1.81347361,61578.0,61577.0,0.002924]
[1719973615426,1.74199245,61578.0,61577.0,0.002924]
[1719973615569,1.90256238,61578.0,61577.0,0.002924]
[1719973616397,1.92476397,61578.0,61577.0,0.002924]
[1719973617391,1.71676858,61578.0,61577.0,0.002924]
[1719973618230,1.71657085,61578.0,61577.0,0.002924]
[1719973618428,2.01657085,61578.0,61577.0,0.002924]
[1719973618655,1.71657085,61578.0,61577.0,0.002924]
[1719973620893,1.695148,61578.0,61577.0,0.002924]
[1719973621052,1.42978755,61578.0,61577.0,0.002924]
[1719973621453,1.57752649,61578.0,61577.0,0.002924]
[1719973621654,1.56652649,61578.0,61577.0,0.001924]
[1719973621956,1.57452649,61578.0,61577.0,0.001924]
[1719973622160,1.58352649,61578.0,61577.0,0.002924]
[1719973622931,1.57352649,61578.0,61577.0,0.001924]
[1719973623088,1.36578755,61578.0,61577.0,0.001924]
[1719973623287,1.42578755,61578.0,61577.0,0.001924]
[1719973623695,1.404348,61578.0,61577.0,0.001924]
[1719973623950,1.42545479,61578.0,61577.0,0.001924]
[1719973624150,1.404348,61578.0,61577.0,0.001924]
[1719973624342,1.42245625,61578.0,61577.0,0.000924]
[1719973624557,1.41645625,61578.0,61577.0,0.000924]
[1719973624706,1.42145625,61578.0,61577.0,0.000924]
[1719973624908,1.42445625,61578.0,61577.0,0.000924]
[1719973625119,1.41945625,61578.0,61577.0,0.000924]
[1719973625557,1.39778687,61578.0,61577.0,0.000924]
[1719973626572,1.66598687,61578.0,61577.0,0.000924]
[1719973626735,1.66642602,61578.0,61577.0,0.000924]
[1719973626929,1.64487862,61578.0,61577.0,0.000924]
[1719973627233,1.66642632,61578.0,61577.0,0.000924]
[1719973627551,1.66804226,61578.0,61577.0,0.000924]
[1719973629423,1.69408603,61578.0,61577.0,0.000924]
[1719973630049,1.6941145,61578.0,61577.0,0.000924]
[1719973630556,1.751934,61578.0,61577.0,0.000924]
[1719973631167,1.483734,61578.0,61577.0,0.000924]
[1719973633195,1.48406279,61578.0,61577.0,0.000924]
[1719973634131,1.41796279,61578.0,61577.0,0.000924]
[1719973634336,1.48406279,61578.0,61577.0,0.000924]
[1719973636280,1.40373518,61578.0,61577.0,0.000924]
[1719973636478,1.48377979,61578.0,61577.0,0.000924]
[1719973636898,1.77870705,61578.0,61577.0,0.000924]
[1719973638200,1.93907011,61578.0,61577.0,0.000924]
[1719973639473,1.93895665,61578.0,61577.0,0.000924]
[1719973640448,1.98661008,61578.0,61577.0,0.000924]
[1719973641457,1.87285665,61578.0,61577.0,0.000924]
[1719973641659,1.93895665,61578.0,61577.0,0.000924]
[1719973641818,1.87003521,61578.0,61577.0,0.000924]
[1719973642019,1.53127215,61578.0,61577.0,0.000924]
[1719973642230,1.48359359,61578.0,61577.0,0.000924]
[1719973642484,1.40373518,61578.0,61577.0,0.000924]
[1719973642726,1.31868995,61578.0,61577.0,0.000924]
[1719973643126,1.57852295,61578.0,61577.0,0.000924]
[1719973643332,1.50698643,61578.0,61577.0,0.000924]
[1719973644302,1.60236846,61578.0,61577.0,0.000924]
[1719973645321,1.62621397,61578.0,61577.0,0.000924]
[1719973645721,1.62671847,61578.0,61577.0,0.000924]
[1719973646332,1.24754099,61578.0,61577.0,0.000924]
[1719973646672,1.36694411,61578.0,61577.0,0.000924]
[1719973647417,0.86160799,61578.0,61577.0,0.000924]
[1719973647621,1.02328437,61578.0,61577.0,0.000924]
[1719973648327,0.92770799,61578.0,61577.0,0.000924]
[1719973648835,0.92819041,61578.0,61577.0,0.000924]
[1719973649187,0.84773856,61578.0,61577.0,0.000924]
[1719973649389,1.07173756,61578.0,61577.0,0.000924]
[1719973651943,1.07220211,61578.0,61577.0,0.000924]
[1719973652319,1.07220062,61578.0,61577.0,0.000924]
[1719973652529,0.92850256,61578.0,61577.0,0.000924]
[1719973654321,0.81236032,61578.0,61577.0,0.317824]
[1719973654724,0.66866956,61578.0,61577.0,0.317824]
[1719973655132,0.66866956,61578.0,61577.0,0.4781228]
[1719973655133,0.11273053,61578.0,61577.0,0.4781228]
[1719973655332,0.11273053,61578.0,61577.0,0.6679408]
[1719973655333,0.05397963,61578.0,61577.0,0.6679408]
[1719973655558,0.07644212,61578.0,61577.0,0.6679408]
[1719973655736,0.02853901,61578.0,61577.0,1.1876148]
[1719973655935,0.00461594,61578.0,61577.0,1.1876148]
[1719973656136,0.00461594,61578.0,61577.0,1.2537148]
[1719973656349,0.00461594,61578.0,61577.0,1.2567148]
[1719973657084,0.00161594,61578.0,61577.0,1.2537148]
[1719973657212,0.00161594,61578.0,61577.0,1.2627148]
[1719973657213,0.00261594,61578.0,61577.0,1.2627148]
[1719973657420,0.00084,61589.0,61586.0,0.3118]
[1719973657638,0.02063278,61588.0,61587.0,0.4720988]
[1719973658296,0.04140953,61588.0,61587.0,0.4720988]
[1719973658474,0.04140911,61588.0,61587.0,0.4720988]
[1719973658877,0.04140911,61588.0,61587.0,0.47204341]
[1719973660271,0.02070476,61588.0,61587.0,0.47204341]
[1719973660472,0.02470476,61588.0,61587.0,0.47204341]
[1719973660815,0.02270476,61588.0,61587.0,0.47204341]
[1719973661215,0.02070476,61588.0,61587.0,0.47204341]
[1719973661440,0.02070476,61588.0,61587.0,0.47304341]
[1719973662169,0.08680476,61588.0,61587.0,0.47596741]
[1719973662365,0.10517007,61588.0,61587.0,0.47496741]
[1719973662768,0.10517007,61588.0,61587.0,0.47696741]
[1719973662971,0.10517007,61588.0,61587.0,0.48296741]
[1719973663179,0.08680476,61588.0,61587.0,0.48296741]
[1719973664825,0.08680476,61588.0,61587.0,0.47896741]
[1719973665412,0.21669976,61588.0,61587.0,0.48396741]
[1719973666312,0.23527159,61588.0,61587.0,0.48396741]
[1719973667037,0.03927659,61588.0,61587.0,0.48396741]
[1719973667652,0.03960501,61588.0,61587.0,0.48396741]
[1719973668022,0.02070476,61588.0,61587.0,0.48396741]
[1719973668648,0.02070476,61588.0,61587.0,0.67376441]
[1719973669985,0.02070476,61588.0,61587.0,1.21635441]
[1719973670186,0.02070476,61588.0,61587.0,0.95655941]
[1719973670385,0.02070476,61588.0,61587.0,0.89665941]
[1719973670589,0.02070476,61588.0,61587.0,0.95655941]
[1719973671418,0.02070476,61588.0,61587.0,0.48396741]
[1719973673459,0.02070476,61588.0,61587.0,0.50193663]
[1719973673656,0.08680476,61588.0,61587.0,0.50193663]
[1719973673824,0.02070476,61588.0,61587.0,0.50193663]
[1719973677864,0.02070476,61588.0,61587.0,0.56183663]
[1719973678539,0.00084,61589.0,61588.0,0.0599]
[1719973678737,0.00084,61589.0,61588.0,0.5368988]
[1719973679940,0.00084,61589.0,61588.0,0.5408988]
[1719973680839,0.00084,61589.0,61588.0,0.5448988]
[1719973681658,0.00084,61589.0,61588.0,0.6747938]
[1719973681855,0.00084,61589.0,61588.0,1.2173738]
[1719973682492,0.00084,61589.0,61588.0,0.6148938]
[1719973682710,0.00084,61589.0,61588.0,0.1682988]
[1719973682902,0.00084,61589.0,61588.0,0.3179988]
[1719973683459,0.01817776,61589.0,61588.0,0.3179988]
[1719973684084,0.01817776,61589.0,61588.0,0.4960988]
[1719973685649,0.00084,61589.0,61588.0,0.4960988]
[1719973685853,0.01825118,61589.0,61588.0,0.4960988]
[1719973686199,0.01825123,61589.0,61588.0,0.4960988]
[1719973688773,0.01762626,61589.0,61588.0,0.4960988]
[1719973691247,0.01762626,61589.0,61588.0,0.5559988]
[1719973691505,0.01762626,61589.0,61588.0,0.6858938]
[1719973691944,0.00084,61589.0,61588.0,0.6858938]
[1719973692074,0.01827438,61589.0,61588.0,0.9456838]
[1719973692307,0.01827438,61589.0,61588.0,0.6858938]
[1719973692826,0.01827438,61589.0,61588.0,0.6818938]
[1719973693242,0.01827438,61589.0,61588.0,0.6918938]
[1719973693522,0.01827438,61589.0,61588.0,0.7058938]
[1719973693790,0.01827438,61589.0,61588.0,0.6778938]
[1719973693935,0.01827438,61589.0,61588.0,0.6918938]
[1719973694144,0.01827438,61589.0,61588.0,0.7058938]
[1719973694722,0.01827438,61589.0,61588.0,0.9656838]
[1719973695121,0.01889884,61589.0,61588.0,0.9656838]
[1719973696075,0.01889884,61589.0,61588.0,0.7058938]
[1719973696272,0.01889884,61589.0,61588.0,0.6319938]
[1719973696475,0.01889884,61589.0,61588.0,0.6179938]
[1719973696616,0.01889884,61589.0,61588.0,0.6319938]
[1719973696823,0.01889884,61589.0,61588.0,0.6459938]
[1719973697027,0.01889884,61589.0,61588.0,0.6319938]
[1719973697231,0.01889884,61589.0,61588.0,0.6459938]
[1719973697436,0.01889884,61589.0,61588.0,0.6319938]
[1719973698288,0.00084,61589.0,61588.0,0.6319938]
[1719973698492,0.01896336,61589.0,61588.0,0.6319938]
[1719973698736,0.00084,61589.0,61588.0,0.6319938]
[1719973698954,0.00084,61589.0,61588.0,0.6459938]
[1719973699187,0.00084,61589.0,61588.0,0.5160988]
[1719973699388,0.01896305,61589.0,61588.0,0.5160988]
[1719973699920,0.15478136,61597.0,61588.0,0.5160988]
[1719973700152,0.20164369,61595.0,61589.0,0.1602988]
[1719973700341,0.02542874,61594.0,61589.0,0.1602988]
[1719973700721,0.02542874,61594.0,61590.0,0.08015582]
[1719973700854,0.00084,61598.0,61596.0,0.3223]
[1719973701039,0.00084,61598.0,61597.0,0.1602988]
[1719973703112,0.00084,61598.0,61597.0,0.1742988]
[1719973703631,0.00084,61598.0,61597.0,0.1882988]
[1719973704614,0.00084,61598.0,61597.0,0.2022988]
[1719973705068,0.00084,61598.0,61597.0,0.28245462]
[1719973706603,0.00084,61598.0,61597.0,1.33088122]
[1719973708560,0.00084,61598.0,61597.0,1.07112922]
[1719973708940,0.00084,61598.0,61597.0,1.05712922]
[1719973709370,0.00084,61598.0,61597.0,1.07112922]
[1719973709784,0.00084,61598.0,61597.0,1.05712922]
[1719973710048,0.00084,61598.0,61597.0,1.04312922]
[1719973710474,0.00084,61598.0,61597.0,1.05388262]
[1719973710755,0.00084,61598.0,61597.0,1.02588262]
[1719973711068,0.00084,61598.0,61597.0,1.07142572]
[1719973714227,0.06694,61598.0,61597.0,0.2058419]
[1719973714396,0.08410676,61598.0,61597.0,0.2058419]
[1719973715641,0.47372876,61598.0,61597.0,0.0455431]
[1719973715846,0.47372876,61598.0,61597.0,0.028]
[1719973715847,0.57094139,61598.0,61597.0,0.028]
[1719973716083,0.49915697,61598.0,61597.0,0.028]
[1719973716343,0.5709264,61598.0,61597.0,0.028]
[1719973716572,0.75890497,61598.0,61597.0,0.014]
[1719973716810,0.75890497,61598.0,61587.0,0.000924]
[1719973716811,0.129881,61595.0,61587.0,0.000924]
[1719973717049,0.129881,61595.0,61588.0,0.1602988]
[1719973717286,0.01870781,61594.0,61588.0,0.1602988]
[1719973718246,0.08480781,61594.0,61588.0,0.1712988]
[1719973718509,0.01870781,61593.0,61588.0,0.1602988]
[1719973719628,0.01870781,61593.0,61588.0,0.1410268]
[1719973719848,0.01870781,61593.0,61588.0,0.1530268]
[1719973720075,0.01860412,61592.0,61588.0,0.1300268]
[1719973720588,0.01860412,61591.0,61588.0,0.1440268]
[1719973720835,0.01860412,61590.0,61588.0,0.1570268]
[1719973721097,0.08470412,61589.0,61588.0,0.1570268]
[1719973721320,0.08470412,61589.0,61588.0,0.1300268]
[1719973721775,0.01860412,61589.0,61588.0,0.1440268]
[1719973722985,0.01860412,61589.0,61588.0,0.1300268]
[1719973723214,0.01745363,61589.0,61588.0,0.1580268]
[1719973723709,0.01745869,61590.0,61588.0,0.1440268]
[1719973723915,0.01745863,61590.0,61588.0,0.1580268]
[1719973724232,0.01745863,61589.0,61588.0,0.1440268]
[1719973724463,0.01745863,61589.0,61588.0,0.1580268]
[1719973724710,0.01745863,61589.0,61588.0,0.1440268]
[1719973725184,0.01745863,61589.0,61588.0,0.1300268]
[1719973726152,0.01745863,61589.0,61588.0,0.1440268]
[1719973726382,0.01552223,61589.0,61588.0,0.1300268]
[1719973726616,0.01552223,61589.0,61588.0,0.1440268]
[1719973726844,0.01552223,61589.0,61588.0,0.1580268]
[1719973727068,0.01552223,61589.0,61588.0,0.1440268]
[1719973727291,0.01552223,61589.0,61588.0,0.1580268]
[1719973727519,0.01552223,61590.0,61588.0,0.1580268]
[1719973727714,0.01552223,61589.0,61588.0,0.1580268]
[1719973727984,0.01552223,61591.0,61588.0,0.1580268]
[1719973728234,0.01552223,61590.0,61588.0,0.2956268]
[1719973728476,0.01552223,61589.0,61588.0,0.2816268]
[1719973728702,0.01552223,61591.0,61588.0,0.2816268]
[1719973728924,0.01552223,61590.0,61588.0,0.2816268]
[1719973729137,0.01552223,61589.0,61588.0,0.2676268]
[1719973729532,0.01552223,61589.0,61588.0,0.2816268]
[1719973729770,0.01552223,61591.0,61588.0,0.2676268]
[1719973729975,0.01552223,61591.0,61588.0,0.2816268]
[1719973730300,0.01552223,61591.0,61590.0,0.08015582]
[1719973730518,0.129886,61593.0,61590.0,0.24045462]
[1719973730720,0.01552223,61592.0,61591.0,0.1602988]
[1719973731996,0.01610992,61592.0,61591.0,0.1602988]
[1719973733338,0.14599592,61592.0,61591.0,0.1882988]
[1719973733699,0.21209592,61592.0,61591.0,0.1882988]
[1719973738279,0.14599592,61592.0,61591.0,0.1882988]
[1719973739501,0.129886,61592.0,61591.0,0.1882988]
[1719973740143,0.129884,61593.0,61591.0,0.1882988]
[1719973741481,0.129884,61593.0,61591.0,0.1742988]
[1719973742759,0.195982,61594.0,61591.0,0.1732988]
[1719973743640,0.195982,61594.0,61591.0,0.1872988]
[1719973743862,0.195982,61594.0,61591.0,0.1602988]
[1719973744340,0.195982,61594.0,61591.0,0.1722988]
[1719973744765,0.195982,61594.0,61591.0,0.1842988]
[1719973745353,0.129882,61594.0,61591.0,0.1842988]
[1719973747435,0.02542911,61593.0,61591.0,0.1842988]
[1719973747661,0.129882,61594.0,61591.0,0.1842988]
[1719973747923,0.0661,61592.0,61591.0,0.1842988]
[1719973748385,0.10791999,61592.0,61591.0,0.1842988]
[1719973749060,0.10791999,61592.0,61591.0,0.1722988]
[1719973749298,0.10791999,61592.0,61591.0,0.1602988]
[1719973749547,0.10791999,61592.0,61591.0,0.1742988]
[1719973749758,0.10791999,61592.0,61591.0,0.1602988]
[1719973750196,0.10791999,61592.0,61591.0,0.1872988]
[1719973750623,0.10791999,61592.0,61591.0,0.1742988]
[1719973751092,0.10778126,61592.0,61591.0,0.1882988]
[1719973751325,0.23766726,61592.0,61591.0,0.1882988]
[1719973752436,0.17156726,61592.0,61591.0,0.1882988]
[1719973753723,0.04168126,61592.0,61591.0,0.1882988]
[1719973754181,0.02542933,61592.0,61591.0,0.1882988]
[1719973754384,0.0417893,61592.0,61591.0,0.1882988]
[1719973754817,0.04178932,61592.0,61591.0,0.1882988]
[1719973755462,0.08962169,61592.0,61591.0,0.1882988]
[1719973757293,0.08962169,61592.0,61591.0,0.3680988]
[1719973757496,0.04173098,61592.0,61591.0,0.3680988]
[1719973758373,0.11353726,61592.0,61591.0,0.3680988]
[1719973759405,0.04173098,61592.0,61591.0,0.3680988]
[1719973760425,0.04173098,61592.0,61591.0,1.2640438]
[1719973760639,0.00084,61598.0,61597.0,0.0599]
[1719973760845,0.00084,61598.0,61597.0,0.6299988]
[1719973761294,0.00084,61598.0,61597.0,1.5391308]
[1719973763113,0.00084,61598.0,61597.0,1.4792308]
[1719973763531,0.00084,61598.0,61597.0,1.61928662]
[1719973763913,0.00084,61598.0,61597.0,1.64728662]
[1719973764904,0.00084,61598.0,61597.0,1.58738662]
[1719973765984,0.00084,61598.0,61597.0,1.64728662]
[1719973766626,0.00084,61598.0,61597.0,0.1882988]
[1719973766848,0.20676053,61598.0,61597.0,0.028]
[1719973767045,0.25458208,61598.0,61597.0,0.028]
[1719973767273,0.46650788,61598.0,61597.0,0.028]
[1719973768325,0.40040788,61598.0,61597.0,0.028]
[1719973768464,0.46650788,61598.0,61597.0,0.028]
[1719973768670,0.5143234,61598.0,61597.0,0.028]
[1719973769534,0.40040788,61598.0,61597.0,0.028]
[1719973769998,0.46650713,61598.0,61597.0,0.028]
[1719973770629,0.46650713,61598.0,61597.0,0.1882988]
[1719973770630,0.01078513,61598.0,61597.0,0.1882988]
[1719973772713,0.00084,61598.0,61597.0,0.1882988]
[1719973773534,0.0107863,61598.0,61597.0,0.1882988]
[1719973773956,0.00084,61598.0,61597.0,0.1882988]
[1719973774529,0.01078628,61598.0,61597.0,0.1882988]
[1719973775157,0.07688628,61598.0,61597.0,0.1882988]
[1719973776136,0.196814,61598.0,61597.0,0.1882988]
[1719973776333,0.45528076,61598.0,61597.0,0.028]
[1719973776538,0.71502876,61598.0,61597.0,0.028]
[1719973776735,0.69263645,61598.0,61597.0,0.028]
[1719973777383,0.71503173,61598.0,61597.0,0.028]
[1719973777598,0.66720789,61598.0,61597.0,0.028]
[1719973777836,0.92695589,61598.0,61597.0,0.028]
[1719973778245,0.97477973,61598.0,61597.0,0.028]
[1719973778453,0.95238437,61598.0,61597.0,0.028]
[1719973778660,0.95238437,61598.0,61597.0,0.014]
[1719973778825,0.95238437,61598.0,61597.0,0.027]
[1719973779027,0.95238437,61598.0,61597.0,0.013]
[1719973779248,0.95238437,61598.0,61597.0,0.019]
[1719973779855,0.95238437,61598.0,61597.0,0.013]
[1719973779856,1.02412397,61598.0,61597.0,0.013]
[1719973780043,0.82342397,61598.0,61597.0,0.013]
[1719973780243,0.91708457,61598.0,61597.0,0.026]
[1719973782289,0.90713848,61598.0,61597.0,0.026]
[1719973782520,0.9170835,61598.0,61597.0,0.026]
[1719973782725,0.98882291,61598.0,61597.0,0.026]
[1719973782930,0.9170835,61598.0,61597.0,0.026]
[1719973785519,0.90713848,61598.0,61597.0,0.026]
[1719973785729,0.91708355,61598.0,61597.0,0.026]
[1719973787360,1.0127396,61598.0,61597.0,0.026]
[1719973787565,0.91708355,61598.0,61597.0,0.026]
[1719973788835,0.91708357,61598.0,61597.0,0.026]
[1719973789302,1.01274191,61598.0,61597.0,0.026]
[1719973789518,0.91708357,61598.0,61597.0,0.026]
[1719973791853,0.75168319,61598.0,61597.0,0.1423]
[1719973792279,0.75168319,61598.0,61597.0,0.3025988]
[1719973792280,0.41589048,61598.0,61597.0,0.3025988]
[1719973792517,0.40040762,61598.0,61597.0,0.3025988]
[1719973794989,0.40040754,61598.0,61597.0,0.3025988]
[1719973795740,0.390462,61598.0,61597.0,0.3025988]
[1719973795938,0.40040759,61598.0,61597.0,0.3025988]
[1719973796308,0.14065959,61598.0,61597.0,0.3025988]
[1719973796545,0.40040759,61598.0,61597.0,0.3025988]
[1719973796735,0.42583606,61598.0,61597.0,0.3025988]
[1719973798047,0.47366671,61598.0,61597.0,0.3025988]
[1719973798171,0.46372121,61598.0,61597.0,0.3025988]
[1719973798373,0.47366604,61598.0,61597.0,0.3025988]
[1719973799210,0.4258353,61598.0,61597.0,0.3025988]
[1719973799463,0.41589047,61598.0,61597.0,0.3025988]
[1719973799623,0.42583858,61598.0,61597.0,0.3025988]
[1719973800666,0.01078811,61598.0,61597.0,0.4675988]
[1719973800926,0.01078811,61598.0,61597.0,0.5274988]
[1719973801213,0.01078982,61598.0,61597.0,0.5274988]
[1719973802694,0.01078982,61598.0,61597.0,0.6573748]
[1719973802903,0.01078982,61598.0,61597.0,0.9401268]
[1719973803970,0.01079035,61598.0,61597.0,0.9401268]
[1719973804390,0.01079157,61598.0,61597.0,0.9401268]
[1719973804816,0.01079157,61598.0,61597.0,0.9271268]
[1719973805222,0.01079157,61598.0,61597.0,1.2411268]
[1719973805596,0.01079157,61598.0,61597.0,1.2141268]
[1719973805827,0.00084,61598.0,61597.0,1.5018788]
[1719973806369,0.00084,61598.0,61597.0,1.7616308]
[1719973806780,0.00084,61598.0,61597.0,1.8277308]
[1719973807151,0.00084,61598.0,61597.0,2.1277308]
[1719973807919,0.00084,61598.0,61597.0,1.8277308]
[1719973808125,0.00084,61598.0,61597.0,2.0616308]
[1719973808347,0.00084,61598.0,61597.0,2.1277308]
[1719973809015,0.00084,61598.0,61597.0,2.14556418]
[1719973809650,0.00084,61598.0,61597.0,1.77946418]
[1719973809859,0.00084,61598.0,61597.0,1.84556418]
[1719973810080,0.00084,61598.0,61597.0,1.77946418]
[1719973810702,0.00084,61598.0,61597.0,1.75612618]
[1719973813041,0.00084,61598.0,61597.0,1.82222618]
[1719973814992,0.00084,61598.0,61597.0,0.29523218]
[1719973815220,0.00084,61598.0,61597.0,0.028]
[1719973815221,0.390462,61598.0,61597.0,0.028]
[1719973815437,0.66015823,61598.0,61597.0,0.028]
[1719973815849,0.73196554,61598.0,61597.0,0.028]
[1719973816260,0.7318925,61598.0,61597.0,0.028]
[1719973816442,0.82342169,61598.0,61597.0,0.028]
[1719973816695,0.8234198,61598.0,61597.0,0.028]
[1719973818590,0.8234198,61598.0,61597.0,0.014]
[1719973818764,0.649392,61596.0,61595.0,0.01807574]
[1719973818976,0.70715932,61596.0,61595.0,0.01807574]
[1719973819188,0.129886,61592.0,61591.0,0.000924]
[1719973819373,0.14562023,61592.0,61591.0,0.1612228]
[1719973819800,0.01573423,61592.0,61591.0,0.1612228]
[1719973820007,0.130714,61598.0,61591.0,0.53241823]
[1719973820210,0.130714,61598.0,61597.0,0.08015582]
[1719973820462,0.14624236,61598.0,61597.0,0.24045462]